fUST/lending_fUST_20250403
["ID","MTS","AMOUNT","RATE_DAILY","PERIOD"]
[357039312,1743612635026,-1993.30921237,0.00018345,2]
[357039313,1743612635036,-500.0,0.00018358,2]
[357039314,1743612635047,-549.75,0.00018358,2]
[357039315,1743612635057,-500.0,0.00018358,2]
[357039316,1743612635067,-319.84,0.00018358,2]
[357039317,1743612635077,-500.0,0.00018359,2]
[357039318,1743612635088,-500.0,0.00018359,2]
[357039319,1743612635098,-500.0,0.00018359,2]
[357039320,1743612635108,-500.0,0.00018359,2]
[357039321,1743612635118,-500.0,0.00018359,2]
[357039322,1743612635128,-500.0,0.00018359,2]
[357039323,1743612635139,-500.0,0.00018359,2]
[357039324,1743612635148,-500.0,0.00018359,2]
[357039325,1743612635163,-500.0,0.00018359,2]
[357039326,1743612635174,-500.0,0.00018359,2]
[357039327,1743612635184,-500.0,0.00018359,2]
[357039328,1743612635194,-500.0,0.00018359,2]
[357039329,1743612635204,-629.8,0.00018359,2]
[357039330,1743612635214,-533.36,0.00018359,2]
[357039331,1743612635223,-500.0,0.00018359,2]
[357039332,1743612635233,-500.0,0.00018359,2]
[357039333,1743612635243,-500.0,0.00018359,2]
[357039334,1743612635253,-821.96,0.00018359,2]
[357039335,1743612635263,-500.0,0.00018359,2]
[357039336,1743612635274,-500.0,0.00018359,2]
[357039337,1743612635285,-500.0,0.00018359,2]
[357039338,1743612635295,-500.0,0.00018359,2]
[357039339,1743612635305,-852.63,0.00018369,2]
[357039340,1743612635314,-500.0,0.00018369,2]
[357039341,1743612635325,-200.0,0.00018458,2]
[357039342,1743612635334,-200.0,0.00018458,2]
[357039343,1743612635344,-500.0,0.00018469,2]
[357039344,1743612635354,-500.0,0.00018469,2]
[357039345,1743612635364,-500.0,0.00018469,2]
[357039346,1743612635374,-500.0,0.00018469,2]
[357039347,1743612635383,-500.0,0.00018469,2]
[357039348,1743612635393,-500.0,0.00018469,2]
[357039349,1743612635405,-242.28616002,0.00018469,2]
[357039350,1743612635415,-501.32816887,0.00018469,2]
[357039351,1743612635425,-202.53179849,0.00018469,2]
[357039352,1743612635435,-192.7356437,0.00018469,2]
[357039353,1743612635448,-616.04,0.00018469,2]
[357039354,1743612635458,-500.0,0.00018469,2]
[357039355,1743612635468,-500.0,0.00018469,2]
[357039356,1743612635478,-500.0,0.00018469,2]
[357039357,1743612635488,-500.0,0.00018469,2]
[357039358,1743612635499,-500.0,0.00018469,2]
[357039359,1743612635509,-500.0,0.00018469,2]
[357039360,1743612635521,-500.0,0.00018469,2]
[357039361,1743612635531,-500.0,0.00018469,2]
[357039362,1743612635542,-500.0,0.00018469,2]
[357039363,1743612635551,-500.0,0.0001847,2]
[357039364,1743612635561,-500.0,0.0001847,2]
[357039365,1743612635571,-500.0,0.0001847,2]
[357039366,1743612635581,-500.0,0.0001847,2]
[357039367,1743612635592,-500.0,0.0001847,2]
[357039368,1743612635602,-500.0,0.0001847,2]
[357039369,1743612635613,-2853.80295213,0.00018486,2]
[357039370,1743612635623,-420.0,0.00018566,2]
[357039371,1743612635632,-500.0,0.00018582,2]
[357039372,1743612635641,-500.0,0.00018582,2]
[357039373,1743612635651,-506.27817109,0.00018582,2]
[357039374,1743612635661,-500.0,0.00018582,2]
[357039375,1743612635670,-500.0,0.00018582,2]
[357039376,1743612635680,-500.0,0.00018582,2]
[357039377,1743612635689,-504.69515223,0.00018582,2]
[357039378,1743612635699,-500.0,0.00018582,2]
[357039379,1743612635711,-500.0,0.00018582,2]
[357039380,1743612635721,-500.0,0.00018608,2]
[357039381,1743612635731,-500.0,0.00018632,2]
[357039382,1743612635741,-500.0,0.00018632,2]
[357039383,1743612635751,-500.0,0.00018633,2]
[357039384,1743612635761,-500.0,0.00018633,2]
[357039385,1743612635771,-500.0,0.00018633,2]
[357039386,1743612635781,-500.0,0.00018633,2]
[357039387,1743612635795,-500.0,0.00018633,2]
[357039388,1743612635804,-500.0,0.00018633,2]
[357039389,1743612635814,-500.0,0.00018633,2]
[357039390,1743612635824,-500.0,0.00018633,2]
[357039391,1743612635835,-318.76,0.00018633,2]
[357039392,1743612635845,-317.68,0.00018633,2]
[357039393,1743612635854,-500.0,0.00018633,2]
[357039394,1743612635865,-500.0,0.00018633,2]
[357039395,1743612635875,-500.0,0.00018633,2]
[357039396,1743612635884,-821.96,0.00018633,2]
[357039397,1743612635894,-428.64,0.00018633,2]
[357039398,1743612635906,-500.0,0.00018633,2]
[357039399,1743612635916,-500.0,0.00018633,2]
[357039400,1743612635925,-852.63,0.00018643,2]
[357039401,1743612635934,-500.0,0.00018643,2]
[357039402,1743612635944,-500.0,0.00018673,2]
[357039403,1743612635954,-500.0,0.00018673,2]
[357039404,1743612635963,-500.0,0.00018673,2]
[357039405,1743612635973,-500.0,0.00018673,2]
[357039406,1743612635982,-280.48755935,0.00018673,2]
[357039407,1743612635992,-500.0,0.00018673,2]
[357039408,1743612636001,-500.54745208,0.00018673,2]
[357039409,1743612636012,-500.0,0.00018673,2]
[357039410,1743612636022,-500.0,0.00018673,2]
[357039411,1743612636032,-500.0,0.00018673,2]
[357039412,1743612636042,-500.0,0.00018673,2]
[357039413,1743612636052,-500.0,0.00018673,2]
[357039414,1743612636061,-209.16619909,0.00018673,2]
[357039415,1743612636071,-392.68558464,0.00018673,2]
[357039416,1743612636081,-500.0,0.00018673,2]
[357039417,1743612636091,-265.25930081,0.00018673,2]
[357039418,1743612636101,-500.0,0.00018673,2]
[357039419,1743612636111,-500.0,0.00018673,2]
[357039420,1743612636121,-502.42674532,0.00018673,2]
[357039421,1743612636130,-500.0,0.00018673,2]
[357039422,1743612636140,-500.0,0.00018673,2]
[357039423,1743612636149,-33306.43262181,0.000187,2]
[357039471,1743612638290,-527.493,0.00018301,2]
[357039473,1743612638299,-2662.31197274,0.000187,2]
[357039580,1743612640600,-500.0,0.00016999,2]
[357039581,1743612640611,-500.0,0.00017273,2]
[357039582,1743612640620,-500.0,0.00017547,2]
[357039583,1743612640629,-1583.13317663,0.000187,2]
[357039584,1743612640641,-332448.12222882,0.000187,2]
[357039585,1743612640650,-1126.540462,0.000187,2]
[357039586,1743612640661,-1126.540462,0.000187,2]
[357039587,1743612640671,-151.0,0.000187,2]
[357039588,1743612640680,-151.0,0.000187,2]
[357039589,1743612640690,-500.0,0.00018743,2]
[357039590,1743612640700,-500.0,0.00018743,2]
[357039592,1743612640709,-500.29721193,0.00018744,2]
[357039593,1743612640719,-500.0,0.00018744,2]
[357039594,1743612640728,-500.0,0.00018744,2]
[357039595,1743612640737,-419.02799708,0.00018827,2]
[357039596,1743612640747,-12458.93820146,0.00018827,2]
[357039597,1743612640757,-836.00498798,0.00018827,2]
[357039598,1743612640766,-160.0,0.00018827,2]
[357039599,1743612640777,-500.0,0.00018906,2]
[357039600,1743612640786,-500.0,0.00018906,2]
[357039601,1743612640796,-500.0,0.00018907,2]
[357039602,1743612640806,-277.58,0.00018907,2]
[357039603,1743612640815,-500.0,0.00018907,2]
[357039604,1743612640825,-259.2,0.00018907,2]
[357039605,1743612640835,-500.0,0.00018907,2]
[357039606,1743612640845,-500.0,0.00018907,2]
[357039607,1743612640855,-379.96,0.00018907,2]
[357039608,1743612640867,-500.0,0.00018907,2]
[357039609,1743612640876,-500.0,0.00018907,2]
[357039610,1743612640887,-821.96,0.00018907,2]
[357039611,1743612640899,-500.0,0.00018907,2]
[357039612,1743612640910,-500.0,0.00018907,2]
[357039613,1743612640919,-852.63,0.00018917,2]
[357039614,1743612640929,-500.0,0.00018917,2]
[357039615,1743612640938,-311.61745044,0.00019006,2]
[357039616,1743612640949,-523.56,0.00019017,2]
[357039617,1743612640959,-500.0,0.00019018,2]
[357039618,1743612640970,-374.16,0.00019018,2]
[357039619,1743612640979,-151.0,0.00019072,2]
[357039620,1743612640988,-2853.80295213,0.00019072,2]
[357039621,1743612640998,-500.0,0.0001918,2]
[357039622,1743612641007,-500.0,0.0001918,2]
[357039623,1743612641017,-292.64,0.00019181,2]
[357039624,1743612641026,-500.0,0.00019181,2]
[357039625,1743612641036,-605.52,0.00019181,2]
[357039626,1743612641046,-500.0,0.00019181,2]
[357039627,1743612641179,-500.0,0.00019181,2]
[357039628,1743612641189,-821.96,0.00019181,2]
[357039629,1743612641199,-500.0,0.00019181,2]
[357039630,1743612641208,-500.0,0.00019181,2]
[357039631,1743612641218,-852.63,0.00019191,2]
[357039632,1743612641228,-500.0,0.00019191,2]
[357039633,1743612641238,-2495.08474494,0.00019276,2]
[357039634,1743612641247,-500.0,0.00019292,2]
[357039635,1743612641257,-2255.0293757,0.00019399,2]
[357039636,1743612641267,-500.0,0.00019454,2]
[357039637,1743612641277,-500.0,0.00019454,2]
[357039638,1743612641286,-500.0,0.00019455,2]
[357039639,1743612641295,-500.0,0.00019455,2]
[357039640,1743612641305,-1126.540462,0.00019455,2]
[357039641,1743612641315,-1126.540462,0.00019455,2]
[357039642,1743612641325,-500.0,0.00019455,2]
[357039643,1743612641335,-821.96,0.00019455,2]
[357039644,1743612641344,-478.48,0.00019455,2]
[357039645,1743612641353,-500.0,0.00019455,2]
[357039646,1743612641363,-151.0,0.00019455,2]
[357039647,1743612641373,-151.0,0.00019455,2]
[357039648,1743612641383,-852.63,0.00019465,2]
[357039649,1743612641393,-500.0,0.00019465,2]
[357039650,1743612641403,-381.2,0.00019566,2]
[357039651,1743612641414,-2853.80295213,0.00019659,2]
[357039652,1743612641424,-500.0,0.00019728,2]
[357039653,1743612641436,-500.0,0.00019728,2]
[357039654,1743612641451,-500.0,0.00019729,2]
[357039655,1743612641462,-500.0,0.00019729,2]
[357039656,1743612641472,-500.0,0.00019729,2]
[357039657,1743612641483,-821.96,0.00019729,2]
[357039658,1743612641493,-500.0,0.00019729,2]
[357039659,1743612641502,-852.63,0.00019739,2]
[357039660,1743612641511,-500.0,0.00019739,2]
[357039661,1743612641522,-398.77491865,0.00019825,2]
[357039662,1743612641531,-160.0,0.00019915,2]
[357039663,1743612641541,-160.0,0.00019915,2]
[357039664,1743612641551,-1132.97289455,0.0001994,2]
[357039665,1743612641561,-1703.26174172,0.00019999,2]
[357039666,1743612641570,-847.70192283,0.00019999,2]
[357039667,1743612641580,-151.0,0.00019999,2]
[357039668,1743612641589,-169.48,0.0002,2]
[357039669,1743612641599,-169.48,0.0002,2]
[357039670,1743612641609,-169.48,0.0002,2]
[357039671,1743612641620,-169.48,0.0002,2]
[357039672,1743612641630,-169.48,0.0002,2]
[357039673,1743612641639,-169.49817419,0.0002,2]
[357039674,1743612641649,-114570.87410987,0.0002,2]
[357039675,1743612641658,-1195.66313881,0.0002,21]
[357039676,1743612641670,-1000.0,0.0002,2]
[357039677,1743612641680,-500.0,0.0002,2]
[357039678,1743612641689,-500.0,0.0002,2]
[357039679,1743612641699,-500.0,0.0002,2]
[357039680,1743612641708,-500.0,0.0002,2]
[357039681,1743612641718,-218.360202,0.0002,2]
[357039682,1743612641729,-180.76436103,0.0002,2]
[357039683,1743612641739,-1126.540462,0.0002,2]
[357039684,1743612641749,-1126.540462,0.0002,2]
[357039685,1743612641759,-151.0,0.0002,2]
[357039686,1743612641769,-151.0,0.0002,2]
[357039687,1743612641778,-500.0,0.00020002,2]
[357039688,1743612641788,-500.0,0.00020002,2]
[357039689,1743612641797,-500.0,0.00020003,2]
[357039690,1743612641807,-500.0,0.00020003,2]
[357039691,1743612641816,-500.0,0.00020003,2]
[357039692,1743612641826,-821.96,0.00020003,2]
[357039693,1743612641835,-500.0,0.00020003,2]
[357039694,1743612641844,-852.63,0.00020013,2]
[357039695,1743612641854,-500.0,0.00020013,2]
[357039696,1743612641864,-2853.80295213,0.00020245,2]
[357039697,1743612641874,-439.0307576,0.00020262,2]
[357039698,1743612641884,-500.0,0.00020276,2]
[357039699,1743612641894,-500.0,0.00020276,2]
[357039700,1743612641903,-500.0,0.00020277,2]
[357039701,1743612641913,-500.0,0.00020277,2]
[357039702,1743612641923,-500.0,0.00020277,2]
[357039703,1743612641932,-821.96,0.00020277,2]
[357039704,1743612641942,-500.0,0.00020277,2]
[357039705,1743612641951,-587.0,0.00020278,2]
[357039706,1743612641961,-852.63,0.00020287,2]
[357039707,1743612641970,-500.0,0.00020287,2]
[357039708,1743612641980,-166.6842139,0.00020493,2]
[357039709,1743612641990,-293.404382,0.00020538,2]
[357039710,1743612641999,-500.0,0.0002055,2]
[357039711,1743612642009,-500.0,0.0002055,2]
[357039712,1743612642018,-500.0,0.00020551,2]
[357039713,1743612642028,-500.0,0.00020551,2]
[357039714,1743612642038,-500.0,0.00020551,2]
[357039715,1743612642048,-821.96,0.00020551,2]
[357039716,1743612642057,-500.0,0.00020551,2]
[357039717,1743612642067,-852.63,0.00020561,2]
[357039718,1743612642077,-500.0,0.00020561,2]
[357039719,1743612642088,-500.0,0.00020651,2]
[357039720,1743612642098,-500.0,0.00020824,2]
[357039721,1743612642107,-500.0,0.00020824,2]
[357039722,1743612642117,-500.0,0.00020825,2]
[357039723,1743612642128,-500.0,0.00020825,2]
[357039724,1743612642138,-500.0,0.00020825,2]
[357039725,1743612642148,-821.96,0.00020825,2]
[357039726,1743612642158,-500.0,0.00020825,2]
[357039727,1743612642168,-2853.80295213,0.00020831,3]
[357039728,1743612642178,-852.63,0.00020835,2]
[357039729,1743612642187,-500.0,0.00020835,2]
[357039730,1743612642197,-151.0,0.000209,3]
[357039731,1743612642207,-1500.0,0.00021,2]
[357039732,1743612642217,-1500.0,0.00021,2]
[357039733,1743612642227,-1500.0,0.00021,2]
[357039734,1743612642236,-1500.0,0.00021,2]
[357039735,1743612642246,-1500.0,0.00021,2]
[357039736,1743612642255,-1500.0,0.00021,2]
[357039737,1743612642265,-1500.0,0.00021,2]
[357039738,1743612642274,-1718.59,0.00021,2]
[357039739,1743612642283,-1500.0,0.00021,2]
[357039740,1743612642293,-1500.0,0.00021,2]
[357039741,1743612642302,-1500.0,0.00021,2]
[357039742,1743612642312,-151.0,0.00021,2]
[357039743,1743612642321,-282.0,0.00021,2]
[357039744,1743612642330,-299.82,0.00021,2]
[357039745,1743612642340,-180.51076404,0.00021,2]
[357039746,1743612642350,-299.82,0.00021,2]
[357039747,1743612642359,-159.29362198,0.00021,2]
[357039748,1743612642369,-299.82,0.00021,2]
[357039749,1743612642378,-2452.0,0.00021,2]
[357039750,1743612642388,-299.82,0.00021,2]
[357039751,1743612642397,-500.0,0.00021,2]
[357039752,1743612642407,-299.82,0.00021,2]
[357039753,1743612642422,-1126.540462,0.00021,2]
[357039754,1743612642437,-1126.540462,0.00021,2]
[357039755,1743612642450,-151.0,0.00021,2]
[357039756,1743612642463,-151.0,0.00021,2]
[357039757,1743612642476,-500.0,0.00021098,2]
[357039758,1743612642487,-500.0,0.00021098,2]
[357039759,1743612642498,-525.52627127,0.00021099,2]
[357039760,1743612642512,-500.0,0.00021099,2]
[357039761,1743612642524,-500.0,0.00021099,2]
[357039762,1743612642537,-821.96,0.00021099,2]
[357039763,1743612642549,-500.0,0.00021099,2]
[357039764,1743612642561,-852.63,0.00021109,2]
[357039765,1743612642574,-500.0,0.00021109,2]
[357039766,1743612642586,-2495.08474494,0.00021115,2]
[357039767,1743612642598,-199.95,0.00021137,2]
[357039768,1743612642611,-2452.0,0.00021137,2]
[357039769,1743612642624,-500.0,0.00021137,2]
[357039770,1743612642636,-299.77,0.00021137,2]
[357039771,1743612642648,-151.0,0.000212,3]
[357039772,1743612642659,-293.404382,0.00021244,2]
[357039773,1743612642672,-299.72,0.00021274,2]
[357039774,1743612642684,-299.72,0.00021274,2]
[357039775,1743612642696,-299.72,0.00021274,2]
[357039776,1743612642708,-299.72,0.00021274,2]
[357039777,1743612642721,-2452.0,0.00021274,2]
[357039778,1743612642734,-599.59,0.00021274,2]
[357039779,1743612642746,-200.08,0.00021274,2]
[357039780,1743612642758,-401.0,0.00021301,2]
[357039781,1743612642769,-293.404382,0.00021352,6]
[357039782,1743612642779,-293.404382,0.00021352,6]
[357039783,1743612642791,-293.404382,0.00021352,6]
[357039784,1743612642802,-293.404382,0.00021352,6]
[357039785,1743612642814,-293.404382,0.00021352,6]
[357039786,1743612642827,-500.0,0.00021372,2]
[357039787,1743612642839,-500.0,0.00021372,2]
[357039788,1743612642852,-500.0,0.00021373,2]
[357039789,1743612642863,-332.52,0.00021373,2]
[357039792,1743612642876,-821.96,0.00021373,2]
[357039793,1743612642888,-442.12,0.00021373,2]
[357039794,1743612642901,-852.63,0.00021383,2]
[357039795,1743612642914,-500.0,0.00021383,2]
[357039796,1743612642927,-13974.37340059,0.00021385,2]
[357039797,1743612642938,-9000.0,0.00021386,2]
[357039798,1743612642948,-151.0,0.00021386,2]
[357039799,1743612642960,-1000.0,0.00021386,14]
[357039801,1743612642970,-1000.0,0.00021386,14]
[357039803,1743612642981,-1000.0,0.00021386,14]
[357039805,1743612642993,-1000.0,0.00021386,14]
[357039807,1743612643007,-1000.0,0.00021386,14]
[357039808,1743612643022,-1000.0,0.00021386,14]
[357039809,1743612643034,-1000.0,0.00021386,14]
[357039812,1743612643046,-1000.0,0.00021386,14]
[357039814,1743612643056,-1000.0,0.00021386,14]
[357039816,1743612643067,-1000.0,0.00021386,14]
[357039818,1743612643078,-1000.0,0.00021386,14]
[357039820,1743612643091,-1000.0,0.00021386,14]
[357039822,1743612643104,-1000.0,0.00021386,14]
[357039825,1743612643115,-1000.0,0.00021386,14]
[357039827,1743612643127,-1000.0,0.00021386,14]
[357039829,1743612643138,-1000.0,0.00021386,14]
[357039831,1743612643148,-1000.0,0.00021386,14]
[357039833,1743612643160,-1000.0,0.00021386,14]
[357039835,1743612643172,-1000.0,0.00021386,14]
[357039838,1743612643183,-1000.0,0.00021386,14]
[357039840,1743612643195,-1000.0,0.00021386,14]
[357039842,1743612643206,-1000.0,0.00021386,14]
[357039844,1743612643217,-1000.0,0.00021386,14]
[357039846,1743612643227,-1000.0,0.00021386,14]
[357039848,1743612643238,-1000.0,0.00021386,14]
[357039850,1743612643249,-1000.0,0.00021386,14]
[357039853,1743612643261,-1000.0,0.00021386,14]
[357039855,1743612643272,-1000.0,0.00021386,14]
[357039857,1743612643283,-1000.0,0.00021386,14]
[357039859,1743612643295,-1000.0,0.00021386,14]
[357039861,1743612643306,-1000.0,0.00021386,14]
[357039863,1743612643316,-1000.0,0.00021386,14]
[357039865,1743612643327,-1000.0,0.00021386,14]
[357039868,1743612643339,-194.38403346,0.00021386,14]
[357039870,1743612643350,-1126.540462,0.00021386,2]
[357039872,1743612643362,-1126.540462,0.00021386,2]
[357039874,1743612643372,-151.0,0.00021386,2]
[357039876,1743612643383,-210.960394,0.00021386,2]
[357039879,1743612643394,-9000.0,0.00021387,2]
[357039881,1743612643405,-9000.0,0.00021388,2]
[357039883,1743612643418,-151.0,0.00021388,2]
[357039885,1743612643429,-9000.0,0.00021389,2]
[357039887,1743612643440,-9000.0,0.0002139,2]
[357039889,1743612643453,-9000.0,0.00021391,2]
[357039891,1743612643464,-9000.0,0.00021392,2]
[357039894,1743612643475,-151.0,0.00021392,2]
[357039896,1743612643487,-1126.540462,0.00021392,2]
[357039898,1743612643498,-1126.540462,0.00021392,2]
[357039900,1743612643509,-9000.0,0.00021393,2]
[357039902,1743612643520,-9000.0,0.00021394,2]
[357039904,1743612643531,-151.0,0.00021394,2]
[357039907,1743612643542,-9000.0,0.00021395,2]
[357039909,1743612643553,-9000.0,0.00021396,2]
[357039911,1743612643563,-1126.540462,0.00021396,2]
[357039913,1743612643576,-1126.540462,0.00021396,2]
[357039915,1743612643587,-9000.0,0.00021397,2]
[357039917,1743612643597,-9000.0,0.00021398,2]
[357039919,1743612643608,-151.0,0.00021398,2]
[357039922,1743612643619,-9000.0,0.00021399,2]
[357039924,1743612643630,-1500.000001,0.000214,2]
[357039926,1743612643641,-6829.94777264,0.000214,2]
[357039929,1743612643658,-2170.05222736,0.000214,2]
[357039931,1743612643669,-151.0,0.000214,2]
[357039933,1743612643681,-2452.0,0.00021411,2]
[357039935,1743612643692,-299.67,0.00021411,2]
[357039937,1743612643702,-2853.80295213,0.00021417,3]
[357039939,1743612643713,-11784.44297939,0.0002145,2]
[357039948,1743612643791,-500.0,0.00017821,2]
[357039951,1743612643807,-500.0,0.00018095,2]
[357039953,1743612643817,-500.0,0.00018369,2]
[357039955,1743612643826,-326.49416855,0.00018643,2]
[357039974,1743612643995,-173.50583145,0.00018643,2]
[357039977,1743612644016,-130.55023711,0.00018917,2]
[357039980,1743612644029,-369.44976289,0.00018917,2]
[357039982,1743612644039,-500.0,0.00019191,2]
[357039984,1743612644049,-500.0,0.00019465,2]
[357039986,1743612644059,-500.0,0.00019739,2]
[357039988,1743612644069,-500.0,0.00020013,2]
[357039989,1743612644078,-500.0,0.00020287,2]
[357039990,1743612644088,-424.62522395,0.0002145,2]
[357040067,1743612646570,-500.0,0.00020561,2]
[357040068,1743612646580,-500.0,0.00020835,2]
[357040070,1743612646589,-379.64,0.00021109,2]
[357040072,1743612646599,-4708.46699266,0.0002145,2]
[357040077,1743612726680,154.13,0.000249,31]
[357040078,1743612726744,154.13,0.000249,31]
[357040079,1743612726807,154.13,0.000249,31]
[357040080,1743612726865,154.13,0.000249,31]
[357040081,1743612726925,154.13,0.000249,31]
[357040082,1743612726983,154.13,0.000249,31]
[357040083,1743612727038,154.13,0.000249,31]
[357040084,1743612735364,153.421766,0.00025,30]
[357040085,1743612735676,153.421766,0.00025,30]
[357040086,1743612735989,153.421766,0.00025,30]
[357040087,1743612736325,153.421766,0.00025,30]
[357040088,1743612736652,153.421766,0.00025,30]
[357040089,1743612857254,153.421766,0.00025,30]
[357040090,1743612857565,153.421766,0.00025,30]
[357040091,1743612857879,153.421766,0.00025,30]
[357040092,1743612858204,153.421766,0.00025,30]
[357040093,1743612858517,153.421766,0.00025,30]
[357040095,1743613160927,311.248018,0.00025,30]
[357040096,1743613161235,311.248018,0.00025,30]
[357040097,1743613161542,311.248018,0.00025,30]
[357040098,1743613161939,311.248018,0.00025,30]
[357040099,1743613162709,311.248018,0.00025,30]
[357040104,1743613329173,154.17,0.000249,31]
[357040105,1743613329230,154.17,0.000249,31]
[357040106,1743613329291,154.17,0.000249,31]
[357040107,1743613329350,154.17,0.000249,31]
[357040108,1743613329412,154.17,0.000249,31]
[357040109,1743613329483,154.17,0.000249,31]
[357040110,1743613329534,154.17,0.000249,31]
[357040111,1743613349328,174.77342,0.00013699,2]
[357040153,1743613757537,259.373348,0.00025,30]
[357040154,1743613757886,259.373348,0.00025,30]
[357040155,1743613758219,259.373348,0.00025,30]
[357040156,1743613758490,259.373348,0.00025,30]
[357040157,1743613758800,259.373348,0.00025,30]
[357040158,1743613820114,3263.3894077,0.00025,120]
[357040170,1743613832590,-335.285908,0.00016367,2]
[357040171,1743613832600,-300.0,0.00016896,2]
[357040172,1743613832609,-728.72,0.00016897,2]
[357040173,1743613832619,-500.0,0.00016897,2]
[357040174,1743613832628,-394.57606067,0.00016897,2]
[357040175,1743613832643,-105.42393933,0.00016897,2]
[357040176,1743613832653,-614.04,0.00016897,2]
[357040177,1743613832663,-500.0,0.00016897,2]
[357040178,1743613832672,-500.0,0.00016897,2]
[357040179,1743613832682,-500.0,0.00016897,2]
[357040180,1743613832691,-500.0,0.00016897,2]
[357040181,1743613832700,-500.0,0.00016897,2]
[357040182,1743613832709,-24268.76897517,0.00016898,2]
[357040183,1743613832749,-5731.23102483,0.00016898,2]
[357040184,1743613832759,-500.0,0.00016999,2]
[357040185,1743613832769,-500.0,0.00016999,2]
[357040186,1743613832778,-728.72,0.00017171,2]
[357040187,1743613832787,-500.0,0.00017171,2]
[357040188,1743613832797,-500.0,0.00017171,2]
[357040189,1743613832806,-500.0,0.00017171,2]
[357040190,1743613832818,-500.0,0.00017171,2]
[357040191,1743613832831,-500.0,0.00017171,2]
[357040192,1743613832840,-500.0,0.00017171,2]
[357040193,1743613832850,-500.0,0.00017171,2]
[357040194,1743613832860,-500.0,0.00017271,2]
[357040195,1743613832869,-317.50714884,0.00017271,2]
[357040196,1743613832879,-500.0,0.00017272,2]
[357040197,1743613832889,-500.0,0.00017272,2]
[357040198,1743613832899,-500.0,0.00017272,2]
[357040199,1743613832908,-181.08065186,0.00017272,2]
[357040200,1743613832918,-500.0,0.00017272,2]
[357040201,1743613832928,-500.0,0.00017272,2]
[357040202,1743613832938,-228.66191284,0.00017272,2]
[357040203,1743613832947,-500.0,0.00017272,2]
[357040204,1743613832956,-500.0,0.00017272,2]
[357040205,1743613832966,-353.87501272,0.00017272,2]
[357040233,1743613838603,-500.0,0.00016897,2]
[357040235,1743613838613,-500.0,0.00016897,2]
[357040237,1743613838623,-500.0,0.00017171,2]
[357040239,1743613838633,-500.0,0.00017171,2]
[357040241,1743613838643,-146.12498728,0.00017272,2]
[357040243,1743613838653,-500.0,0.00017272,2]
[357040245,1743613838663,-500.0,0.00017272,2]
[357040247,1743613838672,-500.0,0.00017272,2]
[357040249,1743613838682,-500.0,0.00017272,2]
[357040251,1743613838693,-500.0,0.00017272,2]
[357040253,1743613838703,-500.0,0.00017272,2]
[357040255,1743613838713,-500.0,0.00017272,2]
[357040257,1743613838722,-500.0,0.00017272,2]
[357040259,1743613838732,-500.0,0.00017273,2]